bitfinex-derivatives/quotes_ETHF0:USTF0_20250909
["timestamp","ask_amount","ask_price","bid_price","bid_amount"]
[1757428886286,0.79640263,4301.7,4301.1,0.9721]
[1757428886480,0.54240263,4301.6,4301.1,0.9721]
[1757428886790,0.54240263,4301.5,4301.1,0.9721]
[1757428887091,3.2078,4302.6,4301.5,0.3834]
[1757428887291,3.2078,4302.6,4301.7,0.9721]
[1757428887292,0.796555,4302.5,4301.7,0.9721]
[1757428887484,0.542555,4302.4,4301.7,0.9721]
[1757428888590,0.542555,4302.3,4302.0,0.3834]
[1757428888794,3.2078,4302.6,4302.1,0.9721]
[1757428888795,0.542555,4302.2,4302.1,0.9721]
[1757428889296,0.542555,4302.5,4302.1,4.0]
[1757428889496,0.254,4302.4,4302.1,0.9721]
[1757428890300,0.254,4302.5,4302.3,0.9721]
[1757428890790,0.254,4302.6,4302.5,0.3834]
[1757428890990,3.2078,4303.1,4302.5,1.3555]
[1757428891193,0.254,4303.0,4302.6,0.9721]
[1757428891390,1.08936275,4303.5,4302.6,0.9721]
[1757428891801,1.47956275,4303.5,4302.6,0.9721]
[1757428892097,0.9048,4302.9,4302.1,0.9721]
[1757428892300,0.9048,4302.7,4302.1,0.9721]
[1757428893192,0.9048,4302.7,4301.6,3.0185]
[1757428893398,0.9048,4302.4,4301.6,2.0464]
[1757428893595,0.9048,4302.2,4301.6,2.0464]
[1757428893895,0.9048,4301.9,4301.6,2.0464]
[1757428894085,0.3902,4302.0,4301.6,2.0464]
[1757428894290,0.9048,4301.9,4301.6,2.0464]
[1757428894596,3.598,4302.5,4301.7,0.9721]
[1757428894597,0.254,4301.8,4301.7,0.9721]
[1757428894894,3.2078,4302.5,4301.7,3.2078]
[1757428895092,0.254,4302.4,4301.8,0.9721]
[1757428895691,0.254,4302.4,4301.7,3.2078]
[1757428895692,0.254,4302.3,4301.7,3.2078]
[1757428895892,0.254,4302.3,4301.8,0.9721]
[1757428896091,0.254,4302.3,4301.7,3.2078]
[1757428896291,0.254,4302.2,4301.7,3.2078]
[1757428896486,0.254,4302.2,4301.8,0.9721]
[1757428897098,3.2078,4302.5,4301.8,0.9721]
[1757428897293,1.1588,4302.4,4301.8,0.9721]
[1757428898800,10.0778,4302.4,4301.8,0.9721]
[1757428899397,10.0778,4302.4,4301.5,0.3834]
[1757428899398,0.9048,4302.3,4301.5,3.2078]
[1757428899609,0.9048,4302.3,4301.6,0.9721]
[1757428900802,8.919,4302.4,4301.6,0.9721]
[1757428900999,8.919,4302.4,4302.1,0.9721]
[1757428901393,0.56760496,4302.3,4302.1,0.9721]
[1757428901594,0.56760496,4302.2,4302.1,0.9721]
[1757428901894,0.254,4302.4,4302.1,0.9721]
[1757428902695,0.254,4302.7,4302.2,0.9721]
[1757428902891,0.254,4302.9,4302.6,4.1799]
[1757428903093,0.56747152,4302.8,4302.7,0.9721]
[1757428903690,0.254,4302.9,4302.7,0.9721]
[1757428903891,3.2078,4303.5,4302.7,0.9721]
[1757428904096,0.9048,4303.3,4302.7,0.9721]
[1757428904295,0.56747138,4303.2,4302.6,3.2078]
[1757428904496,1.47227138,4303.1,4302.7,0.9721]
[1757428904798,0.56747138,4303.0,4302.7,0.9721]
[1757428904997,0.9048,4302.8,4302.1,3.2078]
[1757428905195,0.9048,4302.6,4302.1,2.2357]
[1757428905394,0.9048,4302.4,4302.1,2.2357]
[1757428905595,0.9048,4302.2,4302.1,2.2357]
[1757428905893,1.47227138,4302.2,4302.1,2.2357]
[1757428906901,0.889,4302.1,4301.6,3.2078]
[1757428907088,0.56747138,4302.0,4301.6,3.2078]
[1757428907397,0.889,4301.8,4301.6,3.2078]
[1757428907598,0.889,4301.8,4301.5,0.9721]
[1757428907599,1.143,4301.8,4301.5,0.9721]
[1757428907794,1.71075779,4301.8,4301.5,0.9721]
[1757428907989,0.56775779,4301.8,4301.5,3.2078]
[1757428908195,0.56775779,4301.8,4301.7,3.5688]
[1757428908196,0.254,4301.8,4301.7,3.5688]
[1757428908788,0.254,4301.8,4301.7,0.964]
[1757428909104,0.254,4301.8,4301.5,3.2078]
[1757428909105,3.2078,4302.4,4301.6,0.964]
[1757428909405,0.82175375,4302.3,4301.6,0.964]
[1757428909596,0.56775375,4302.2,4301.6,0.964]
[1757428909798,1.45675375,4302.1,4301.5,5.759]
[1757428909998,1.45675375,4302.0,4301.6,0.964]
[1757428910199,0.889,4302.0,4301.6,0.964]
[1757428910601,0.56777651,4301.9,4301.5,1.5872]
[1757428910802,0.889,4302.0,4301.5,1.5872]
[1757428911104,0.889,4301.8,4301.6,0.964]
[1757428911805,0.889,4301.9,4301.6,0.964]
[1757428912012,0.889,4301.9,4301.7,0.964]
[1757428912198,0.889,4301.9,4301.6,0.964]
[1757428912507,0.82168486,4301.8,4301.7,0.964]
[1757428913595,0.56768486,4301.8,4301.7,0.964]
[1757428914002,3.2078,4302.4,4301.7,4.964]
[1757428914209,0.82191966,4302.3,4302.1,0.964]
[1757428914407,0.56791966,4302.2,4302.1,0.964]
[1757428914602,0.254,4302.3,4302.1,0.964]
[1757428914906,8.919,4302.8,4302.2,4.23243999]
[1757428915111,0.56836131,4302.7,4302.3,0.964]
[1757428915405,0.56836131,4302.6,4302.1,0.23243]
[1757428915616,8.919,4302.8,4302.1,0.23243]
[1757428915617,0.56836131,4302.5,4302.1,0.23243]
[1757428915814,8.919,4302.8,4302.1,0.964]
[1757428916107,0.5687765,4302.7,4302.1,0.964]
[1757428916308,0.5687765,4302.6,4302.1,0.964]
[1757428916612,0.254,4303.2,4302.6,0.964]
[1757428916811,0.56883961,4303.1,4303.0,0.3784]
[1757428917004,0.56883961,4303.1,4303.0,0.964]
[1757428918004,0.56883961,4303.1,4303.0,5.3424]
[1757428918215,0.253,4304.2,4303.1,0.8346]
[1757428918509,0.253,4304.2,4303.6,0.8346]
[1757428919211,1.142,4304.3,4303.6,0.8346]
[1757428919613,0.889,4304.3,4303.6,0.8346]
[1757428919913,1.142,4304.3,4303.6,0.8346]
[1757428921004,0.253,4304.3,4303.5,3.2078]
[1757428921207,0.889,4304.2,4303.5,3.2078]
[1757428921912,0.253,4304.3,4303.5,3.2078]
[1757428922114,0.889,4304.2,4303.5,4.0424]
[1757428922410,0.889,4304.2,4303.2,0.253]
[1757428922611,0.889,4303.4,4303.2,0.253]
[1757428922909,0.889,4303.4,4303.2,1.0876]
[1757428923123,0.0582,4304.3,4303.3,0.8346]
[1757428925109,0.889,4304.2,4303.3,0.8346]
[1757428926011,2.1094,4304.2,4304.1,0.6143]
[1757428926214,2.3624,4304.2,4304.1,1.5783]
[1757428926907,3.2078,4304.5,4304.2,0.964]
[1757428927107,2.3624,4304.4,4304.3,0.6143]
[1757428927311,2.3624,4304.4,4304.1,0.964]
[1757428927508,0.889,4304.3,4303.7,0.964]
[1757428927714,0.6242,4303.8,4303.7,2.2213]
[1757428928215,0.889,4303.7,4303.2,5.3098]
[1757428928408,0.6242,4303.3,4303.2,6.5671]
[1757428928613,0.6242,4303.3,4303.2,6.3141]
[1757428929713,2.1094,4303.3,4303.2,4.0928]
[1757428930115,5.42850782,4303.3,4303.2,4.0928]
[1757428930313,4.30130782,4303.3,4303.2,0.2477]
[1757428930511,0.5055,4303.2,4303.0,1.976]
[1757428930713,1.04500782,4303.1,4303.0,1.976]
[1757428931217,1.29800782,4303.1,4303.0,1.976]
[1757428931918,5.29800782,4303.1,4303.0,1.976]
[1757428932117,5.67382401,4303.1,4303.0,0.30791208]
[1757428932308,5.67382401,4303.1,4301.1,16.4078]
[1757428932309,0.23243,4303.0,4301.5,0.2513]
[1757428932507,3.2078,4302.5,4301.9,0.2382]
[1757428932717,0.5055,4302.3,4302.0,0.964]
[1757428932907,0.53950782,4302.2,4302.1,0.964]
[1757428933113,3.2078,4302.5,4302.1,0.964]
[1757428933310,0.253,4302.2,4302.1,0.964]
[1757428934311,0.7585,4302.2,4302.1,0.964]
[1757428934620,0.79213158,4302.2,4301.5,3.1585]
[1757428934922,0.5055,4301.9,4301.5,2.9072]
[1757428935122,3.2078,4302.0,4301.5,2.9072]
[1757428935123,0.5055,4301.7,4301.5,2.9072]
[1757428935311,1.04443502,4301.6,4301.5,1.74461208]
[1757428935713,1.29743502,4301.6,4301.5,1.74461208]
[1757428936117,1.29743502,4301.6,4300.8,0.964]
[1757428936314,3.2078,4301.3,4300.6,0.964]
[1757428936517,0.253,4301.2,4300.7,0.2382]
[1757428936716,0.253,4301.2,4300.6,0.9459]
[1757428937026,0.253,4301.1,4300.6,0.9459]
[1757428937322,0.253,4301.0,4300.6,0.9459]
[1757428937512,3.2078,4301.3,4300.6,0.9459]
[1757428937717,0.79115273,4301.2,4301.0,0.3839]
[1757428937923,0.53815273,4301.1,4301.0,1.3298]
[1757428938131,0.253,4301.2,4301.1,0.9459]
[1757428938327,0.79097281,4301.2,4301.1,0.9459]
[1757428938525,1.33607281,4301.2,4300.1,2.0696]
[1757428938818,3.2078,4300.6,4300.1,2.0696]
[1757428939012,0.9955,4300.4,4300.2,0.2382]
[1757428940220,3.2078,4301.1,4300.5,0.3839]
[1757428940422,0.253,4301.0,4300.5,0.3839]
[1757428940618,0.253,4301.0,4300.7,0.9459]
[1757428940819,1.2485,4301.0,4300.6,0.2382]
[1757428941024,0.253,4301.0,4300.6,0.2382]
[1757428941326,0.9955,4300.9,4300.1,0.9459]
[1757428943228,0.9955,4300.7,4300.1,0.9459]
[1757428943429,2.2598,4300.7,4300.6,0.6407]
[1757428943931,2.2598,4300.7,4300.1,0.9459]
[1757428947226,2.2598,4300.7,4300.6,0.6407]
[1757428947925,3.8223,4301.3,4301.2,0.6407]
[1757428948127,5.7206,4301.3,4301.2,0.6407]
[1757428948435,5.7206,4301.3,4300.3,0.9459]
[1757428948927,0.9955,4300.7,4299.8,0.9459]
[1757428949224,0.3863,4301.0,4299.5,0.3784]
[1757428949225,4.2033,4300.2,4299.6,0.9459]
[1757428949426,4.2033,4300.2,4299.0,0.3839]
[1757428949427,0.9955,4299.9,4299.1,0.9459]
[1757428949727,0.3863,4299.5,4298.6,0.9459]
[1757428949929,1.2485,4299.4,4298.6,0.9459]
[1757428950132,1.17876643,4299.4,4298.6,0.9459]
[1757428950624,0.9955,4299.4,4298.6,0.9459]
[1757428950833,0.253,4299.3,4298.6,1.17850999]
[1757428951829,0.253,4299.3,4298.6,0.9459]
[1757428952930,0.253,4299.2,4298.6,0.9459]
[1757428953140,0.253,4299.2,4299.1,0.9459]
[1757428953630,0.253,4299.3,4299.1,0.9459]
[1757428953831,0.9955,4300.1,4299.1,0.9459]
[1757428954134,0.253,4300.0,4299.6,0.9459]
[1757428954334,0.9955,4300.1,4299.6,0.9459]
[1757428954629,1.61814951,4302.2,4299.5,3.5917]
[1757428954630,3.2078,4300.9,4300.1,0.9459]
[1757428955129,0.253,4300.8,4300.1,0.9459]
[1757428955333,0.253,4300.7,4300.1,0.9459]
[1757428955536,0.253,4300.7,4300.6,0.9459]
[1757428955933,1.3818,4301.5,4300.6,0.9459]
[1757428956129,0.9955,4301.5,4300.6,0.9459]
[1757428956435,0.9955,4302.3,4301.2,0.9459]
[1757428956629,0.253,4302.2,4301.2,0.9459]
[1757428957634,0.9955,4301.9,4301.2,0.9459]
[1757428960536,0.253,4301.8,4301.2,0.9459]
[1757428960733,0.253,4301.8,4301.1,3.2078]
[1757428960930,0.9955,4301.7,4300.6,16.4078]
[1757428961238,0.3863,4301.5,4300.6,4.1537]
[1757428961432,0.5378642,4301.4,4300.6,4.1537]
[1757428961636,1.2475,4301.3,4300.6,4.1537]
[1757428961831,3.2078,4301.9,4301.1,0.9459]
[1757428962033,0.9955,4301.8,4301.1,0.9459]
[1757428962531,0.252,4301.7,4301.1,0.9459]
[1757428964332,3.2078,4301.9,4301.1,0.9459]
[1757428964536,0.252,4302.0,4301.6,0.9459]
[1757428965435,0.252,4302.0,4301.9,0.9459]
[1757428965638,3.77604375,4303.0,4301.9,0.9459]
[1757428965639,0.9955,4302.4,4301.9,0.9459]
[1757428965837,0.79043782,4302.3,4302.1,0.9459]
[1757428966033,0.9955,4302.9,4302.1,0.9459]
[1757428966238,0.53828361,4302.8,4302.1,0.9459]
[1757428966537,0.252,4302.9,4302.5,0.3839]
[1757428966942,0.9538,4302.8,4302.6,0.9929]
[1757428967142,0.9538,4302.8,4302.5,0.3839]
[1757428967343,0.9538,4302.8,4302.6,0.9929]
[1757428967539,3.4598,4303.0,4302.6,0.9929]
[1757428967838,0.9538,4302.8,4302.1,0.9929]
[1757428968542,0.252,4302.8,4302.1,0.9929]
[1757428968945,0.252,4302.8,4302.0,3.5917]
[1757428968946,0.252,4303.0,4302.6,3.2078]
[1757428969136,0.252,4303.0,4302.7,0.9929]
[1757428969342,0.9538,4303.0,4302.6,3.2078]
[1757428969537,0.252,4303.1,4302.7,0.9929]
[1757428969737,1.85737178,4303.0,4302.1,0.9929]
[1757428969937,1.85737178,4303.0,4302.1,1.22532]
[1757428969938,1.3197,4303.0,4302.1,1.22532]
[1757428970144,1.3197,4303.0,4302.1,0.9929]
[1757428970350,0.9538,4302.8,4302.1,0.9929]
[1757428972641,0.9538,4302.9,4301.8,3.4598]
[1757428972843,0.3659,4303.0,4301.8,3.4598]
[1757428973038,0.9538,4302.8,4301.8,3.4598]
[1757428973239,0.3659,4303.0,4301.9,0.9929]
[1757428973441,3.2078,4302.6,4301.9,0.9929]
[1757428973642,0.6179,4302.5,4301.5,0.3765]
[1757428973944,0.9538,4302.4,4301.6,0.9929]
[1757428975149,0.9538,4302.4,4301.9,0.9929]
[1757428975350,0.252,4302.5,4302.0,0.3839]
[1757428975544,0.252,4302.5,4302.1,0.9929]
[1757428975545,0.9538,4302.4,4302.1,0.9929]
[1757428975738,1.5548,4302.2,4302.1,2.2504]
[1757428975942,0.9538,4302.4,4302.2,0.9929]
[1757428976147,1.5548,4302.4,4302.3,2.2504]
[1757428977045,2.1596,4302.4,4301.9,0.9929]
[1757428977249,0.9538,4302.3,4301.6,0.9929]
[1757428977547,1.2058,4302.4,4302.3,0.9929]
[1757428977748,2.4116,4302.4,4302.3,1.2575]
[1757428977949,2.4116,4302.4,4302.3,0.6556]
[1757428978750,2.4116,4302.4,4302.3,1.2575]
[1757428979043,2.4116,4302.4,4302.3,2.2504]
[1757428980149,2.1596,4302.4,4302.3,2.2504]
[1757428980344,0.3659,4302.5,4302.4,2.2504]
[1757428980345,0.252,4302.5,4302.4,2.2504]
[1757428980653,0.601,4301.9,4301.8,5.4582]
[1757428981542,1.5548,4301.9,4301.8,5.4582]
[1757428982842,0.9538,4301.8,4301.3,4.2007]
[1757428983044,1.5548,4301.8,4301.7,2.2504]
[1757428983245,2.6989259,4301.8,4301.7,2.2504]
[1757428983447,2.6989259,4301.8,4301.7,1.2575]
[1757428983641,2.6989259,4301.8,4301.3,3.8634]
[1757428983642,1.2058,4301.4,4301.3,3.8634]
[1757428983845,1.2058,4301.4,4301.0,0.9929]
[1757428984148,2.1596,4300.8,4300.7,3.2078]
[1757428984351,2.1596,4300.8,4300.7,5.4582]
[1757428984555,3.5737,4301.5,4301.3,0.6556]
[1757428984556,1.5548,4301.4,4301.3,0.6556]
[1757428984751,2.69849449,4301.4,4301.3,2.2504]
[1757428985053,0.79089449,4301.4,4301.3,2.2504]
[1757428985256,0.53889449,4301.4,4301.3,2.2504]
[1757428985452,0.252,4301.7,4301.6,2.2504]
[1757428986046,0.7912566,4301.7,4301.6,2.2504]
[1757428986254,2.6988566,4301.7,4301.6,1.2575]
[1757428986451,2.0940566,4301.7,4301.6,1.2575]
[1757428986646,2.09421644,4301.7,4301.6,1.2575]
[1757428986853,2.09421644,4301.7,4301.6,2.2504]
[1757428987152,1.2058,4301.3,4300.8,0.9929]
[1757428987355,0.9538,4300.9,4300.5,3.4598]
[1757428987748,0.9538,4300.7,4300.1,0.9929]
[1757428988156,0.252,4300.8,4299.9,3.2078]
[1757428988457,0.9538,4300.6,4299.9,3.2078]
[1757428988649,0.90503945,4300.5,4299.9,3.2078]
[1757428988850,0.9538,4300.3,4300.0,0.9929]
[1757428989048,0.9538,4300.2,4299.9,3.2078]
[1757428989250,0.252,4300.3,4299.6,0.9929]
[1757428989251,0.3659,4300.0,4299.6,0.9929]
[1757428989449,0.3659,4300.0,4298.7,3.2078]
[1757428989450,1.49218591,4299.9,4298.7,3.2078]
[1757428989646,0.9538,4299.4,4298.7,4.2007]
[1757428989960,0.252,4299.3,4298.7,4.2007]
[1757428990550,0.252,4299.2,4298.8,0.9929]
[1757428990751,3.5737,4300.0,4299.1,0.9929]
[1757428990956,0.74786966,4299.9,4299.1,0.9929]
[1757428991162,0.44258,4299.9,4299.1,0.9929]
[1757428991362,0.21,4299.9,4299.1,0.9929]
[1757428991660,0.23259,4299.8,4299.1,0.9929]
[1757428991963,3.5737,4300.0,4299.1,0.9929]
[1757428991964,0.252,4299.7,4299.1,0.9929]
[1757428993254,0.252,4299.7,4299.1,3.6449]
[1757428993562,0.252,4299.6,4299.2,0.9929]
[1757428993764,0.252,4299.6,4299.5,0.3881]
[1757428993962,0.9538,4300.1,4299.5,1.381]
[1757428994162,0.252,4300.0,4299.6,0.9929]
[1757428994357,4.5275,4300.5,4299.6,0.9929]
[1757428994565,4.1616,4300.5,4299.6,0.9929]
[1757428994856,3.2078,4300.5,4300.0,0.3881]
[1757428995059,0.252,4300.4,4300.0,0.3881]
[1757428995365,3.2078,4301.0,4300.1,0.9929]
[1757428995561,3.2078,4301.0,4300.1,3.2078]
[1757428995562,0.9538,4300.8,4300.1,3.2078]
[1757428995758,0.9538,4300.8,4299.9,0.9929]
[1757428996058,0.252,4300.7,4299.9,0.9929]
[1757428996358,0.9538,4300.6,4299.9,0.9929]
[1757428996861,0.9538,4300.6,4299.6,2.024]
[1757428996862,3.2078,4300.3,4300.0,0.9011]
[1757428997162,0.252,4300.3,4299.7,3.2078]
[1757428998068,0.252,4300.3,4299.8,0.9011]
[1757428998258,3.2078,4300.8,4300.0,0.3608]
[1757428998460,0.252,4300.7,4300.1,0.9011]
[1757428999160,1.1365,4300.7,4300.1,0.9011]
[1757428999360,0.8845,4300.6,4299.8,0.9011]
[1757428999964,0.8845,4300.4,4299.8,0.9011]
[1757429001268,0.8845,4300.2,4299.6,2.024]
[1757429001465,0.8845,4299.9,4299.6,2.024]
[1757429001957,0.3721,4300.0,4299.6,2.024]
[1757429002566,0.8845,4299.9,4299.6,2.024]
[1757429002772,0.82886027,4299.8,4297.5,0.3608]
[1757429002969,4.0923,4298.4,4297.5,0.3608]
[1757429003264,0.251,4298.3,4297.5,0.3608]
[1757429003465,0.43370867,4298.3,4297.5,0.3608]
[1757429004169,0.8845,4298.2,4297.5,0.3608]
[1757429004866,0.8845,4297.6,4296.5,1.2619]
[1757429005068,0.8845,4297.4,4296.5,1.2619]
[1757429005468,3.2078,4297.2,4296.5,1.2619]
[1757429005766,3.2078,4297.2,4296.6,0.9011]
[1757429005968,33.69170867,4298.3,4297.0,0.3608]
[1757429005969,0.251,4297.1,4297.0,0.3608]
[1757429006173,0.251,4297.1,4297.0,1.2619]
[1757429007470,3.2078,4297.7,4297.1,0.9011]
[1757429007663,4.0923,4297.7,4297.6,0.9011]
[1757429007865,3.2078,4297.7,4297.6,0.9011]
[1757429008064,0.251,4297.8,4297.1,0.9011]
[1757429008662,0.251,4297.8,4297.5,0.3608]
[1757429008964,1.1355,4297.8,4297.1,0.9011]
[1757429009164,3.2078,4297.7,4297.1,0.9011]
[1757429009361,4.0923,4297.7,4297.1,0.9011]
[1757429010465,0.251,4297.8,4296.5,1.2619]
[1757429010466,0.8845,4297.1,4296.5,1.2619]
[1757429010660,0.251,4297.0,4296.5,0.9011]
[1757429010868,0.8845,4296.9,4296.0,3.5686]
[1757429011062,0.8845,4296.9,4296.1,0.9011]
[1757429011271,0.251,4297.0,4296.1,0.9011]
[1757429011468,3.2078,4297.2,4297.1,0.9011]
[1757429011668,3.4588,4297.2,4297.1,0.9011]
[1757429011870,0.251,4297.2,4297.1,0.9011]
[1757429015373,3.2078,4297.7,4297.5,0.3608]
[1757429015572,0.251,4297.6,4297.5,1.2619]
[1757429016182,3.2078,4297.7,4297.5,0.3608]
[1757429016376,0.251,4297.6,4297.5,0.3608]
[1757429016875,0.251,4297.6,4297.5,1.2619]
[1757429017575,3.2078,4297.7,4297.6,0.9011]
[1757429017771,3.99542588,4297.7,4297.6,0.9011]
[1757429017971,3.2078,4298.2,4297.6,0.9011]
[1757429018172,0.78762573,4298.1,4298.0,1.2619]
[1757429019074,0.53662573,4298.1,4298.0,1.2619]
[1757429019278,0.78762573,4298.1,4298.0,1.2619]
[1757429019875,0.78762573,4298.1,4297.2,0.9011]
[1757429020068,0.53662573,4298.0,4297.2,0.9011]
[1757429021073,0.53662573,4298.0,4297.0,0.3608]
[1757429021074,3.2078,4297.7,4297.0,0.3608]
[1757429021374,3.2078,4297.2,4297.0,0.9011]
[1757429021577,1.1355,4297.1,4297.0,0.9011]
[1757429021775,1.67245329,4297.1,4296.6,0.9011]
[1757429021979,1.1355,4297.1,4296.6,0.9011]
[1757429022476,0.53689812,4297.0,4296.1,0.9011]
[1757429022678,0.53689812,4296.9,4296.5,0.3608]
[1757429022877,0.53689812,4296.8,4296.6,0.9011]
[1757429023178,3.2078,4297.7,4297.1,0.9011]
[1757429023369,0.78790937,4297.6,4297.1,0.9011]
[1757429023677,0.78790937,4297.5,4297.1,0.9011]
[1757429023882,3.2078,4297.7,4297.1,0.9011]
[1757429024179,3.4588,4297.7,4297.1,0.9011]
[1757429024380,3.2078,4297.2,4296.6,0.9011]
[1757429024575,0.8845,4296.6,4296.0,0.9011]
[1757429024876,3.2078,4296.1,4295.6,0.9011]
[1757429025084,0.78798658,4296.0,4295.5,0.3608]
[1757429025379,0.53698658,4295.9,4295.6,0.9011]
[1757429025679,0.53698658,4295.9,4295.5,0.3608]
[1757429025680,0.251,4296.0,4295.5,0.3608]
[1757429025880,0.53686197,4295.9,4295.5,0.3608]
[1757429026079,0.53686197,4295.8,4295.5,0.3608]
[1757429026281,0.251,4296.0,4295.5,0.3608]
[1757429026580,0.5369338,4295.9,4295.6,0.9088]
[1757429026775,0.251,4295.8,4295.6,0.9088]
[1757429027081,0.251,4295.8,4295.5,0.3608]
[1757429027082,3.4588,4296.6,4296.1,0.9088]
[1757429027283,0.78795545,4296.5,4296.1,0.9088]
[1757429027474,0.53695545,4296.4,4296.0,0.3559]
[1757429027870,0.53695545,4296.4,4296.1,0.9088]
[1757429028077,0.8923,4296.3,4295.6,0.9088]
[1757429028278,0.53695545,4296.2,4295.6,0.9088]
[1757429028477,0.251,4296.1,4295.6,0.9088]
[1757429028777,0.53695545,4296.0,4295.6,0.9088]
[1757429028978,0.8923,4295.9,4295.5,1.2696]
[1757429029185,0.53695545,4295.8,4295.5,0.3608]
[1757429029381,0.53695545,4295.8,4295.6,0.9088]
[1757429029382,0.251,4295.7,4295.6,0.9088]
[1757429029682,0.78795545,4295.7,4295.0,0.3608]
[1757429029887,3.74475545,4295.6,4295.5,1.2647]
[1757429030188,4.63705545,4295.6,4294.9,0.9088]
[1757429030379,3.2078,4295.1,4294.9,0.9088]
[1757429030572,0.78795545,4295.0,4294.9,0.9088]
[1757429030773,0.8923,4294.9,4294.5,1.2696]
[1757429030979,3.2078,4294.6,4294.5,0.9088]
[1757429031176,3.99575545,4294.6,4294.5,1.2647]
[1757429032085,3.99575545,4294.6,4294.5,0.3559]
[1757429032286,3.99575545,4294.6,4294.5,1.2647]
[1757429032874,3.74475545,4294.6,4294.5,1.2647]
[1757429033082,3.99575545,4294.6,4294.5,1.2647]
[1757429033284,0.78795545,4294.6,4294.5,1.2647]
[1757429033485,0.78795545,4294.6,4294.5,5.2647]
[1757429033888,0.53695545,4294.6,4294.5,1.2647]
[1757429034186,0.53695545,4295.0,4294.5,0.3559]
[1757429034388,0.53695545,4294.9,4294.6,0.9088]
[1757429034686,0.53695545,4294.8,4294.5,0.3559]
[1757429034886,0.53695545,4294.7,4294.6,0.9088]
[1757429035082,0.53695545,4295.0,4294.6,0.9088]
[1757429035483,0.251,4294.9,4294.6,0.9088]
[1757429035786,3.2078,4295.3,4295.0,0.3559]
[1757429035989,0.251,4295.2,4295.1,0.9088]
[1757429036678,0.9385,4295.6,4295.0,0.3559]
[1757429036883,3.2078,4295.9,4295.5,0.3559]
[1757429037189,0.251,4295.8,4295.6,0.9088]
[1757429037685,0.9385,4295.7,4295.6,0.9088]
[1757429037878,0.251,4295.8,4295.1,0.9088]
[1757429038190,3.2078,4295.9,4295.5,0.3559]
[1757429038382,3.3241,4296.5,4296.1,0.9088]
[1757429038681,0.1163,4296.5,4296.4,3.2078]
[1757429038880,0.1163,4296.5,4296.4,8.1166]
[1757429039080,0.251,4297.1,4297.0,1.2647]
[1757429039481,3.4588,4297.3,4297.1,0.9088]
[1757429039789,3.39049712,4297.8,4297.1,0.9088]
[1757429039981,3.2078,4297.8,4297.1,0.9088]
[1757429040489,0.1163,4297.7,4297.6,0.9088]
[1757429040881,3.2078,4298.3,4298.1,0.9088]
[1757429041275,0.9385,4298.2,4297.6,0.9088]
[1757429042286,0.9385,4298.2,4297.1,0.9088]
[1757429042783,3.2078,4298.3,4296.9,3.2078]
[1757429042990,0.9385,4298.1,4296.9,3.2078]
[1757429043201,0.9385,4297.9,4296.9,3.2078]
[1757429043784,0.6226,4298.0,4296.9,3.2078]
[1757429044087,0.9385,4297.4,4296.1,0.9088]
[1757429044289,0.251,4297.3,4296.1,0.9088]
[1757429044487,0.9385,4297.0,4296.1,0.9088]
[1757429044684,0.251,4296.9,4296.1,0.9088]
[1757429045385,1.1895,4296.9,4296.7,2.5152]
[1757429045588,0.251,4296.9,4296.8,0.9088]
[1757429046492,3.2078,4297.1,4297.0,0.3559]
[1757429046693,0.251,4297.1,4297.0,0.3559]
[1757429046889,3.2078,4297.6,4297.1,0.9088]
[1757429047089,0.251,4297.5,4297.1,0.9088]
[1757429047493,3.2078,4297.6,4297.1,0.9088]
[1757429047693,0.251,4297.5,4297.1,0.9088]
[1757429047994,0.251,4297.5,4297.0,3.5637]
[1757429048199,0.251,4297.5,4297.1,0.9088]
[1757429048889,3.2078,4297.6,4297.5,0.3559]
[1757429049092,3.4588,4297.6,4297.5,1.2647]
[1757429049284,4.1463,4298.1,4297.5,0.3559]
[1757429049490,0.7876683,4298.0,4297.6,0.9088]
[1757429049689,3.2078,4298.1,4297.6,0.9088]
[1757429049886,0.53666396,4298.0,4297.6,0.9088]
[1757429050087,0.251,4298.0,4297.6,0.9088]
[1757429050790,3.2078,4298.7,4297.6,0.9088]
[1757429050984,0.78760169,4298.6,4297.6,0.9088]
[1757429051185,0.53660169,4298.5,4297.6,0.9088]
[1757429051391,0.9385,4298.4,4297.6,0.9088]
[1757429051696,4.1463,4298.2,4297.6,0.9088]
[1757429051893,0.251,4298.1,4297.6,0.9088]
[1757429052089,4.1463,4298.2,4297.6,0.9088]
[1757429052291,0.251,4298.1,4298.0,1.2647]
[1757429052596,0.9385,4298.8,4298.0,0.3559]
[1757429052597,0.251,4298.3,4298.0,0.3559]
[1757429052796,0.251,4298.3,4298.1,0.9088]
[1757429053003,0.251,4298.3,4298.0,0.3559]
[1757429053300,0.9385,4298.2,4298.0,0.9088]
[1757429053491,0.9385,4298.2,4297.6,0.9088]
[1757429055293,0.9385,4298.1,4297.5,2.2584]
[1757429055494,0.3716,4298.0,4297.5,2.2584]
[1757429055695,0.9385,4297.8,4297.5,2.2584]
[1757429055895,0.25,4297.9,4297.5,2.2584]
[1757429056095,0.25,4297.8,4297.5,2.2584]
[1757429056398,3.2078,4297.7,4297.5,2.2584]
[1757429056600,0.2607,4297.6,4297.5,2.2584]
[1757429057000,4.2607,4297.6,4297.5,2.2584]